[Event "Titled Tuesday Blitz November 08 Early 2022"]
[White "Valle Maytin, Luis Enrique"]
[Black "Goh, Zi Han"]
[WhiteFideId "3503666"]
[BlackFideId "5819156"]
[WhiteElo "2225"]
[BlackElo "2026"]
[Result "0-1"]
[Round "03"]
[TimeControl "180+1"]
[Date "2022.11.09"]
[WhiteClock "0:00:02"]
[BlackClock "0:00:09"]

1. e4 {[%clk 0:03:00]}  g6 {[%clk 0:02:49]} 2. d4 {[%clk 0:03:00]}  Bg7 {[%clk 0:02:49]} 3. f4 {[%clk 0:03:00]}  d6 {[%clk 0:02:48]} 4. Nf3 {[%clk 0:02:59]}  Nf6 {[%clk 0:02:43]} 5. Bd3 {[%clk 0:02:58]}  O-O {[%clk 0:02:42]} 6. O-O {[%clk 0:02:57]}  Nbd7 {[%clk 0:02:40]} 7. c3 {[%clk 0:02:53]}  e5 {[%clk 0:02:37]} 8. dxe5 {[%clk 0:02:46]}  dxe5 {[%clk 0:02:37]} 9. Qc2 {[%clk 0:02:43]}  Re8 {[%clk 0:02:16]} 10. Rd1 {[%clk 0:02:35]}  Qe7 {[%clk 0:02:09]} 11. Re1 {[%clk 0:01:07]}  b6 {[%clk 0:01:39]} 12. Nbd2 {[%clk 0:00:50]}  Bb7 {[%clk 0:01:32]} 13. Nc4 {[%clk 0:00:47]}  exf4 {[%clk 0:01:29]} 14. e5 {[%clk 0:00:46]}  Nd5 {[%clk 0:01:22]} 15. b4 {[%clk 0:00:24]}  a5 {[%clk 0:01:12]} 16. b5 {[%clk 0:00:13]}  Nc5 {[%clk 0:01:10]} 17. Ba3 {[%clk 0:00:09]}  Qd7 {[%clk 0:01:01]} 18. Nd4 {[%clk 0:00:08]}  Nxd3 {[%clk 0:00:57]} 19. Qxd3 {[%clk 0:00:09]}  Qg4 {[%clk 0:00:54]} 20. Re2 {[%clk 0:00:05]}  Ne3 {[%clk 0:00:43]} 21. Nxe3 {[%clk 0:00:05]}  fxe3 {[%clk 0:00:43]} 22. Qxe3 {[%clk 0:00:02]}  Rxe5 {[%clk 0:00:41]} 23. Qg3 {[%clk 0:00:02]}  Qxg3 {[%clk 0:00:34]} 24. hxg3 {[%clk 0:00:03]}  Rxe2 {[%clk 0:00:34]} 25. Nxe2 {[%clk 0:00:04]}  Re8 {[%clk 0:00:34]} 26. Kf2 {[%clk 0:00:03]}  Bd5 {[%clk 0:00:27]} 27. Rc1 {[%clk 0:00:03]}  Bc4 {[%clk 0:00:27]} 28. Nd4 {[%clk 0:00:03]}  Bh6 {[%clk 0:00:18]} 29. Rc2 {[%clk 0:00:03]}  Be3+ {[%clk 0:00:17]} 30. Kf3 {[%clk 0:00:03]}  Bd5+ {[%clk 0:00:17]} 31. Kg4 {[%clk 0:00:03]}  h5+ {[%clk 0:00:17]} 32. Kh3 {[%clk 0:00:03]}  Bh6 {[%clk 0:00:12]} 33. Re2 {[%clk 0:00:03]}  Rxe2 {[%clk 0:00:11]} 34. Nxe2 {[%clk 0:00:04]}  Bc4 {[%clk 0:00:12]} 35. Nd4 {[%clk 0:00:04]}  Bg7 {[%clk 0:00:09]} 36. g4 {[%clk 0:00:02]}  hxg4+ {[%clk 0:00:09]} 37. Kxg4 {[%clk 0:00:02]}  Bxa2 {[%clk 0:00:09]} 0-1


[Site "https://www.chess.com"]

[Event "Titled Tuesday Blitz November 08 Early 2022"]
[White "Wiegmann, Sascha"]
[Black "Zhao, Erick"]
[WhiteFideId "4682041"]
[BlackFideId "30946930"]
[WhiteElo "2307"]
[BlackElo "2584"]
[Result "1/2-1/2"]
[Round "03"]
[TimeControl "180+1"]
[Date "2022.11.09"]
[WhiteClock "0:00:18"]
[BlackClock "0:02:45"]

1. Nf3 {[%clk 0:00:30]}  Nf6 {[%clk 0:02:58]} 2. g3 {[%clk 0:00:31]}  g6 {[%clk 0:02:59]} 3. Bg2 {[%clk 0:00:30]}  Bg7 {[%clk 0:02:59]} 4. O-O {[%clk 0:00:31]}  O-O {[%clk 0:02:59]} 5. d3 {[%clk 0:00:31]}  d5 {[%clk 0:03:00]} 6. Nbd2 {[%clk 0:00:32]}  c5 {[%clk 0:03:00]} 7. e4 {[%clk 0:00:33]}  d4 {[%clk 0:03:01]} 8. e5 {[%clk 0:00:33]}  Nfd7 {[%clk 0:03:01]} 9. Re1 {[%clk 0:00:34]}  Nc6 {[%clk 0:03:01]} 10. e6 {[%clk 0:00:34]}  fxe6 {[%clk 0:03:02]} 11. Rxe6 {[%clk 0:00:35]}  Nde5 {[%clk 0:03:02]} 12. Nxe5 {[%clk 0:00:31]}  Nxe5 {[%clk 0:03:01]} 13. Rxe5 {[%clk 0:00:31]}  Bxe5 {[%clk 0:03:02]} 14. Nc4 {[%clk 0:00:31]}  Bg7 {[%clk 0:03:03]} 15. Bf4 {[%clk 0:00:31]}  Be6 {[%clk 0:03:03]} 16. Qe2 {[%clk 0:00:30]}  Bxc4 {[%clk 0:03:03]} 17. dxc4 {[%clk 0:00:31]}  e5 {[%clk 0:03:02]} 18. Bd2 {[%clk 0:00:28]}  Qd7 {[%clk 0:02:59]} 19. Qe4 {[%clk 0:00:26]}  Kh8 {[%clk 0:02:53]} 20. b3 {[%clk 0:00:25]}  Rab8 {[%clk 0:02:51]} 21. Re1 {[%clk 0:00:26]}  b5 {[%clk 0:02:50]} 22. cxb5 {[%clk 0:00:25]}  Qxb5 {[%clk 0:02:51]} 23. Qd5 {[%clk 0:00:24]}  Rbd8 {[%clk 0:02:47]} 24. Qc6 {[%clk 0:00:23]}  Qxc6 {[%clk 0:02:47]} 25. Bxc6 {[%clk 0:00:24]}  d3 {[%clk 0:02:46]} 26. c4 {[%clk 0:00:23]}  h5 {[%clk 0:02:44]} 27. Be4 {[%clk 0:00:23]}  Kh7 {[%clk 0:02:45]} 28. Kg2 {[%clk 0:00:21]}  Bh6 {[%clk 0:02:45]} 29. Rd1 {[%clk 0:00:19]}  Bxd2 {[%clk 0:02:43]} 30. Rxd2 {[%clk 0:00:20]}  Rd4 {[%clk 0:02:43]} 31. f3 {[%clk 0:00:20]}  Rfd8 {[%clk 0:02:43]} 32. Kf2 {[%clk 0:00:20]}  Kg7 {[%clk 0:02:44]} 33. Ke3 {[%clk 0:00:20]}  Kf6 {[%clk 0:02:45]} 34. h4 {[%clk 0:00:19]}  R4d6 {[%clk 0:02:44]} 35. Rxd3 {[%clk 0:00:18]}  Rxd3+ {[%clk 0:02:44]} 36. Bxd3 {[%clk 0:00:19]}  Rd4 {[%clk 0:02:44]} 37. Be4 {[%clk 0:00:19]}  a5 {[%clk 0:02:45]} 38. Bd3 {[%clk 0:00:19]}  Rd6 {[%clk 0:02:45]} 39. Ke4 {[%clk 0:00:19]}  Rd4+ {[%clk 0:02:45]} 40. Ke3 {[%clk 0:00:19]}  Kf7 {[%clk 0:02:46]} 41. Ke2 {[%clk 0:00:17]}  Kf6 {[%clk 0:02:45]} 42. Ke3 {[%clk 0:00:18]} 1/2-1/2


[Site "https://www.chess.com"]

[Event "Titled Tuesday Blitz November 08 Early 2022"]
[White "Yeremyan, Alen"]
[Black "Tang, Andrew"]
[WhiteFideId "13308998"]
[BlackFideId "2059630"]
[WhiteElo "2159"]
[BlackElo "2581"]
[Result "0-1"]
[Round "03"]
[TimeControl "180+1"]
[Date "2022.11.08"]
[WhiteClock "0:00:17"]
[BlackClock "0:00:11"]

1. g3 {[%clk 0:03:00]}  d5 {[%clk 0:02:58]} 2. Bg2 {[%clk 0:03:00]}  c6 {[%clk 0:02:58]} 3. c4 {[%clk 0:02:59]}  d4 {[%clk 0:02:39]} 4. d3 {[%clk 0:02:58]}  g6 {[%clk 0:02:34]} 5. Nf3 {[%clk 0:02:51]}  Bg7 {[%clk 0:02:33]} 6. O-O {[%clk 0:02:50]}  Nh6 {[%clk 0:02:32]} 7. b4 {[%clk 0:02:48]}  O-O {[%clk 0:02:31]} 8. Bb2 {[%clk 0:02:48]}  e5 {[%clk 0:02:24]} 9. a4 {[%clk 0:02:40]}  Re8 {[%clk 0:02:23]} 10. Nbd2 {[%clk 0:02:26]}  a5 {[%clk 0:02:20]} 11. bxa5 {[%clk 0:02:25]}  Qxa5 {[%clk 0:02:18]} 12. Nb3 {[%clk 0:02:25]}  Qc7 {[%clk 0:02:18]} 13. a5 {[%clk 0:02:25]}  Na6 {[%clk 0:02:18]} 14. Nfd2 {[%clk 0:02:24]}  Bg4 {[%clk 0:02:17]} 15. h3 {[%clk 0:02:16]}  Bd7 {[%clk 0:02:14]} 16. Ne4 {[%clk 0:02:08]}  Nf5 {[%clk 0:02:03]} 17. Nec5 {[%clk 0:02:07]}  Bc8 {[%clk 0:02:01]} 18. Qd2 {[%clk 0:02:03]}  Bh6 {[%clk 0:01:57]} 19. Nxa6 {[%clk 0:02:01]}  Rxa6 {[%clk 0:01:54]} 20. Qb4 {[%clk 0:01:57]}  Bf8 {[%clk 0:01:54]} 21. c5 {[%clk 0:01:55]}  h5 {[%clk 0:01:50]} 22. Nd2 {[%clk 0:01:51]}  Be6 {[%clk 0:01:41]} 23. Ra3 {[%clk 0:01:34]}  Rea8 {[%clk 0:01:40]} 24. Rfa1 {[%clk 0:01:32]}  h4 {[%clk 0:01:27]} 25. g4 {[%clk 0:01:29]}  Ne7 {[%clk 0:01:27]} 26. Nc4 {[%clk 0:00:58]}  Nd5 {[%clk 0:01:17]} 27. Bxd5 {[%clk 0:00:59]}  cxd5 {[%clk 0:01:12]} 28. Nd6 {[%clk 0:00:51]}  Bxd6 {[%clk 0:00:25]} 29. cxd6 {[%clk 0:00:49]}  Rxd6 {[%clk 0:00:26]} 30. Rc1 {[%clk 0:00:44]}  Qd7 {[%clk 0:00:26]} 31. Rb3 {[%clk 0:00:42]}  Bxg4 {[%clk 0:00:22]} 32. hxg4 {[%clk 0:00:29]}  Qxg4+ {[%clk 0:00:21]} 33. Kf1 {[%clk 0:00:19]}  h3 {[%clk 0:00:11]} 34. Ke1 {[%clk 0:00:16]}  h2 {[%clk 0:00:10]} 35. Kd2 {[%clk 0:00:16]}  Qf4+ {[%clk 0:00:10]} 36. Kc2 {[%clk 0:00:16]}  Rc6+ {[%clk 0:00:10]} 37. Kb1 {[%clk 0:00:16]}  Rxc1+ {[%clk 0:00:10]} 38. Bxc1 {[%clk 0:00:17]}  h1=Q {[%clk 0:00:11]} 0-1


[Site "https://www.chess.com"]

[Event "Titled Tuesday Blitz November 08 Early 2022"]
[White "Yurovskykh, Oleksandr"]
[Black "Sibilio, Mario"]
[WhiteFideId "14134020"]
[BlackFideId "800422"]
[WhiteElo "2265"]
[BlackElo "2251"]
[Result "1-0"]
[Round "03"]
[TimeControl "180+1"]
[Date "2022.11.09"]
[WhiteClock "0:00:15"]
[BlackClock "0:00:01"]

1. d4 {[%clk 0:03:00]}  d6 {[%clk 0:02:57]} 2. Nf3 {[%clk 0:02:53]}  g6 {[%clk 0:02:54]} 3. e4 {[%clk 0:02:49]}  Nf6 {[%clk 0:02:53]} 4. Nbd2 {[%clk 0:02:47]}  Bg7 {[%clk 0:02:50]} 5. Bb5+ {[%clk 0:02:47]}  Nfd7 {[%clk 0:02:39]} 6. O-O {[%clk 0:02:45]}  O-O {[%clk 0:02:37]} 7. Re1 {[%clk 0:02:44]}  c5 {[%clk 0:02:36]} 8. c3 {[%clk 0:02:44]}  a6 {[%clk 0:02:34]} 9. Bf1 {[%clk 0:02:38]}  cxd4 {[%clk 0:02:26]} 10. cxd4 {[%clk 0:02:38]}  Nc6 {[%clk 0:02:26]} 11. Nb3 {[%clk 0:02:34]}  b5 {[%clk 0:02:13]} 12. d5 {[%clk 0:02:30]}  Nce5 {[%clk 0:02:05]} 13. Nfd4 {[%clk 0:02:30]}  Bb7 {[%clk 0:02:04]} 14. Bg5 {[%clk 0:02:27]}  h6 {[%clk 0:02:02]} 15. Bh4 {[%clk 0:02:27]}  Rc8 {[%clk 0:01:57]} 16. Rc1 {[%clk 0:02:25]}  Nc4 {[%clk 0:01:47]} 17. Bxc4 {[%clk 0:02:11]}  bxc4 {[%clk 0:01:44]} 18. Na1 {[%clk 0:02:06]}  Qb6 {[%clk 0:01:42]} 19. Nac2 {[%clk 0:01:57]}  Rfe8 {[%clk 0:01:32]} 20. Rb1 {[%clk 0:01:57]}  Ne5 {[%clk 0:01:27]} 21. f3 {[%clk 0:01:17]}  Nd3 {[%clk 0:01:25]} 22. Bf2 {[%clk 0:01:17]}  e6 {[%clk 0:01:01]} 23. dxe6 {[%clk 0:01:03]}  fxe6 {[%clk 0:00:55]} 24. Rf1 {[%clk 0:01:00]}  d5 {[%clk 0:00:44]} 25. exd5 {[%clk 0:00:56]}  exd5 {[%clk 0:00:40]} 26. Qd2 {[%clk 0:00:56]}  Nxf2 {[%clk 0:00:34]} 27. Qxf2 {[%clk 0:00:55]}  Re7 {[%clk 0:00:29]} 28. Rfe1 {[%clk 0:00:40]}  Rce8 {[%clk 0:00:26]} 29. Rxe7 {[%clk 0:00:40]}  Rxe7 {[%clk 0:00:26]} 30. Kf1 {[%clk 0:00:35]}  Bc8 {[%clk 0:00:23]} 31. g4 {[%clk 0:00:27]}  a5 {[%clk 0:00:16]} 32. h3 {[%clk 0:00:24]}  c3 {[%clk 0:00:15]} 33. b3 {[%clk 0:00:23]}  Ba6+ {[%clk 0:00:14]} 34. Kg1 {[%clk 0:00:21]}  Bd3 {[%clk 0:00:14]} 35. Rd1 {[%clk 0:00:18]}  Bxc2 {[%clk 0:00:10]} 36. Nxc2 {[%clk 0:00:19]}  d4 {[%clk 0:00:06]} 37. Re1 {[%clk 0:00:16]}  Rxe1+ {[%clk 0:00:04]} 38. Nxe1 {[%clk 0:00:17]}  Qd6 {[%clk 0:00:02]} 39. Nd3 {[%clk 0:00:16]}  g5 {[%clk 0:00:01]} 40. f4 {[%clk 0:00:15]} 1-0


[Site "https://www.chess.com"]

[Event "Titled Tuesday Blitz November 08 Early 2022"]
[White "Zaksaite, Salomeja"]
[Black "Aizpurua, Patrick Emilio"]
[WhiteFideId "12801496"]
[BlackFideId "6600522"]
[WhiteElo "2079"]
[BlackElo "2378"]
[Result "1-0"]
[Round "03"]
[TimeControl "180+1"]
[Date "2022.11.09"]
[WhiteClock "0:00:17"]
[BlackClock "0:00:15"]

1. e4 {[%clk 0:03:00]}  e6 {[%clk 0:02:59]} 2. d4 {[%clk 0:02:59]}  d5 {[%clk 0:02:59]} 3. Bd3 {[%clk 0:02:59]}  Nf6 {[%clk 0:02:59]} 4. e5 {[%clk 0:02:52]}  Nfd7 {[%clk 0:02:58]} 5. c3 {[%clk 0:02:51]}  c5 {[%clk 0:02:57]} 6. Ne2 {[%clk 0:02:45]}  Be7 {[%clk 0:02:57]} 7. O-O {[%clk 0:02:42]}  Nc6 {[%clk 0:02:56]} 8. Nd2 {[%clk 0:02:37]}  cxd4 {[%clk 0:02:30]} 9. cxd4 {[%clk 0:02:36]}  O-O {[%clk 0:02:30]} 10. f4 {[%clk 0:02:35]}  Qb6 {[%clk 0:02:26]} 11. Nf3 {[%clk 0:02:34]}  f6 {[%clk 0:02:26]} 12. Qc2 {[%clk 0:02:07]}  fxe5 {[%clk 0:01:41]} 13. Bxh7+ {[%clk 0:02:04]}  Kh8 {[%clk 0:01:40]} 14. fxe5 {[%clk 0:01:45]}  Ndxe5 {[%clk 0:01:35]} 15. Nxe5 {[%clk 0:01:31]}  Nxe5 {[%clk 0:01:33]} 16. Rxf8+ {[%clk 0:01:29]}  Bxf8 {[%clk 0:01:34]} 17. Bf4 {[%clk 0:00:43]}  Nd7 {[%clk 0:01:12]} 18. Rf1 {[%clk 0:00:36]}  Nf6 {[%clk 0:01:04]} 19. Bg6 {[%clk 0:00:32]}  Bd7 {[%clk 0:01:04]} 20. Be5 {[%clk 0:00:29]}  Be7 {[%clk 0:00:17]} 21. Qd3 {[%clk 0:00:25]}  Rc8 {[%clk 0:00:14]} 22. Qh3+ {[%clk 0:00:22]}  Kg8 {[%clk 0:00:14]} 23. Bxf6 {[%clk 0:00:21]}  Bxf6 {[%clk 0:00:15]} 24. Qh7+ {[%clk 0:00:20]}  Kf8 {[%clk 0:00:14]} 25. Rxf6+ {[%clk 0:00:20]}  Ke7 {[%clk 0:00:15]} 26. Qxg7+ {[%clk 0:00:19]}  Kd6 {[%clk 0:00:15]} 27. Rf7 {[%clk 0:00:17]} 1-0


[Site "https://www.chess.com"]

[Event "Titled Tuesday Blitz November 08 Early 2022"]
[White "Zaragatski, Ilja"]
[Black "Mosadeghpour, Masoud"]
[WhiteFideId "4655192"]
[BlackFideId "12519278"]
[WhiteElo "2460"]
[BlackElo "2393"]
[Result "0-1"]
[Round "03"]
[TimeControl "180+1"]
[Date "2022.11.09"]
[WhiteClock "0:00:02"]
[BlackClock "0:01:20"]

1. Nf3 {[%clk 0:03:00]}  Nf6 {[%clk 0:02:20]} 2. g3 {[%clk 0:03:00]}  g6 {[%clk 0:02:20]} 3. b3 {[%clk 0:03:00]}  Bg7 {[%clk 0:02:21]} 4. Bb2 {[%clk 0:03:00]}  O-O {[%clk 0:02:22]} 5. Bg2 {[%clk 0:03:01]}  d5 {[%clk 0:02:22]} 6. c4 {[%clk 0:02:59]}  Nc6 {[%clk 0:02:23]} 7. cxd5 {[%clk 0:02:51]}  Nxd5 {[%clk 0:02:24]} 8. Bxg7 {[%clk 0:02:50]}  Kxg7 {[%clk 0:02:24]} 9. O-O {[%clk 0:02:35]}  Qd6 {[%clk 0:02:24]} 10. Qc2 {[%clk 0:02:34]}  Bf5 {[%clk 0:02:23]} 11. d3 {[%clk 0:02:34]}  Bg4 {[%clk 0:02:23]} 12. Qb2+ {[%clk 0:02:32]}  Qf6 {[%clk 0:02:22]} 13. Qxf6+ {[%clk 0:02:28]}  Nxf6 {[%clk 0:02:23]} 14. Nbd2 {[%clk 0:02:26]}  Rfd8 {[%clk 0:02:23]} 15. Rac1 {[%clk 0:02:23]}  Rac8 {[%clk 0:02:20]} 16. h3 {[%clk 0:02:19]}  Bf5 {[%clk 0:02:18]} 17. a3 {[%clk 0:02:16]}  e5 {[%clk 0:02:14]} 18. Rc5 {[%clk 0:02:11]}  Nd7 {[%clk 0:02:09]} 19. Rc2 {[%clk 0:01:54]}  Nb6 {[%clk 0:02:05]} 20. Rfc1 {[%clk 0:01:48]}  f6 {[%clk 0:01:58]} 21. Kf1 {[%clk 0:01:42]}  a5 {[%clk 0:01:53]} 22. Nc4 {[%clk 0:01:37]}  Nxc4 {[%clk 0:01:49]} 23. bxc4 {[%clk 0:01:30]}  e4 {[%clk 0:01:48]} 24. dxe4 {[%clk 0:01:13]}  Bxe4 {[%clk 0:01:49]} 25. Rb2 {[%clk 0:01:10]}  b6 {[%clk 0:01:47]} 26. c5 {[%clk 0:01:04]}  Ne7 {[%clk 0:01:43]} 27. Ne1 {[%clk 0:00:55]}  Bxg2+ {[%clk 0:01:41]} 28. Kxg2 {[%clk 0:00:56]}  Kf7 {[%clk 0:01:31]} 29. Nd3 {[%clk 0:00:54]}  Nd5 {[%clk 0:01:28]} 30. cxb6 {[%clk 0:00:42]}  cxb6 {[%clk 0:01:29]} 31. Rxc8 {[%clk 0:00:19]}  Rxc8 {[%clk 0:01:30]} 32. e4 {[%clk 0:00:18]}  Nc3 {[%clk 0:01:29]} 33. Rxb6 {[%clk 0:00:14]}  Nxe4 {[%clk 0:01:29]} 34. Rb7+ {[%clk 0:00:12]}  Kg8 {[%clk 0:01:25]} 35. Kf3 {[%clk 0:00:08]}  f5 {[%clk 0:01:24]} 36. Ke3 {[%clk 0:00:04]}  Rc3 {[%clk 0:01:22]} 37. a4 {[%clk 0:00:04]}  Nc5 {[%clk 0:01:22]} 38. Rb8+ {[%clk 0:00:01]}  Kf7 {[%clk 0:01:21]} 39. Rc8 {[%clk 0:00:02]}  Rxd3+ {[%clk 0:01:20]} 40. Ke2 {[%clk 0:00:02]}  Rd5 {[%clk 0:01:20]} 0-1


[Site "https://www.chess.com"]

[Event "Titled Tuesday Blitz November 08 Early 2022"]
[White "Zemlyanskii, Ivan"]
[Black "Bagwe Gaurang"]
[WhiteFideId "24249971"]
[BlackFideId "45039895"]
[WhiteElo "2107"]
[BlackElo "1847"]
[Result "0-1"]
[Round "03"]
[TimeControl "180+1"]
[Date "2022.11.09"]
[WhiteClock "0:00:01"]
[BlackClock "0:00:27"]

1. d4 {[%clk 0:00:44]}  d5 {[%clk 0:02:57]} 2. c4 {[%clk 0:00:44]}  c6 {[%clk 0:02:58]} 3. Nf3 {[%clk 0:00:44]}  Nf6 {[%clk 0:02:58]} 4. Nc3 {[%clk 0:00:44]}  dxc4 {[%clk 0:02:59]} 5. a4 {[%clk 0:00:44]}  Bf5 {[%clk 0:02:58]} 6. Ne5 {[%clk 0:00:44]}  e6 {[%clk 0:02:59]} 7. Nxc4 {[%clk 0:00:39]}  Bb4 {[%clk 0:02:55]} 8. f3 {[%clk 0:00:31]}  O-O {[%clk 0:02:47]} 9. Kf2 {[%clk 0:00:31]}  e5 {[%clk 0:02:05]} 10. Nxe5 {[%clk 0:00:26]}  c5 {[%clk 0:02:01]} 11. Na2 {[%clk 0:00:21]}  Bc2 {[%clk 0:01:39]} 12. Qxc2 {[%clk 0:00:18]}  Qxd4+ {[%clk 0:01:38]} 13. e3 {[%clk 0:00:18]}  Qxe5 {[%clk 0:01:38]} 14. Nxb4 {[%clk 0:00:18]}  cxb4 {[%clk 0:01:38]} 15. Bd3 {[%clk 0:00:14]}  Nc6 {[%clk 0:01:36]} 16. Qe2 {[%clk 0:00:13]}  Rfe8 {[%clk 0:01:31]} 17. Bd2 {[%clk 0:00:09]}  Rad8 {[%clk 0:01:30]} 18. Rhd1 {[%clk 0:00:07]}  Qxh2 {[%clk 0:01:20]} 19. Be1 {[%clk 0:00:08]}  Ne5 {[%clk 0:01:15]} 20. Bb5 {[%clk 0:00:07]}  Rf8 {[%clk 0:00:36]} 21. Bxb4 {[%clk 0:00:07]}  Qh4+ {[%clk 0:00:30]} 22. Kg1 {[%clk 0:00:04]}  Qxb4 {[%clk 0:00:30]} 23. f4 {[%clk 0:00:05]}  Neg4 {[%clk 0:00:29]} 24. Bd3 {[%clk 0:00:03]}  Qc5 {[%clk 0:00:28]} 25. Re1 {[%clk 0:00:02]}  Rfe8 {[%clk 0:00:27]} 26. Qf1 {[%clk 0:00:01]}  Nxe3 {[%clk 0:00:27]} 0-1


[Site "https://www.chess.com"]

[Event "Titled Tuesday Blitz November 08 Early 2022"]
[White "Aaditya Dhingra"]
[Black "Barash, Anton"]
[WhiteFideId "25678191"]
[BlackFideId "30935229"]
[WhiteElo "2054"]
[BlackElo "2252"]
[Result "0-1"]
[Round "04"]
[TimeControl "180+1"]
[Date "2022.11.09"]
[WhiteClock "0:00:05"]
[BlackClock "0:00:20"]

1. e4 {[%clk 0:03:00]}  e6 {[%clk 0:02:58]} 2. d4 {[%clk 0:03:00]}  d5 {[%clk 0:02:59]} 3. Nd2 {[%clk 0:02:55]}  Nc6 {[%clk 0:02:59]} 4. Ngf3 {[%clk 0:02:52]}  Nf6 {[%clk 0:02:57]} 5. e5 {[%clk 0:02:52]}  Nd7 {[%clk 0:02:58]} 6. Bb5 {[%clk 0:02:52]}  a6 {[%clk 0:02:58]} 7. Bxc6 {[%clk 0:02:50]}  bxc6 {[%clk 0:02:59]} 8. Nb3 {[%clk 0:02:46]}  c5 {[%clk 0:02:57]} 9. c3 {[%clk 0:02:46]}  cxd4 {[%clk 0:02:54]} 10. cxd4 {[%clk 0:02:46]}  c5 {[%clk 0:02:54]} 11. dxc5 {[%clk 0:02:38]}  Nxc5 {[%clk 0:02:52]} 12. Bg5 {[%clk 0:02:33]}  Qb6 {[%clk 0:02:45]} 13. Be3 {[%clk 0:01:56]}  Qb4+ {[%clk 0:02:32]} 14. Qd2 {[%clk 0:01:18]}  Nxb3 {[%clk 0:02:08]} 15. axb3 {[%clk 0:01:17]}  Qxb3 {[%clk 0:02:08]} 16. O-O {[%clk 0:01:17]}  Bb4 {[%clk 0:02:04]} 17. Qe2 {[%clk 0:01:09]}  O-O {[%clk 0:01:48]} 18. Rfc1 {[%clk 0:01:10]}  Be7 {[%clk 0:01:28]} 19. Nd4 {[%clk 0:01:05]}  Qb7 {[%clk 0:01:22]} 20. Rc3 {[%clk 0:00:34]}  Bd7 {[%clk 0:01:21]} 21. Qg4 {[%clk 0:00:31]}  Rfc8 {[%clk 0:01:11]} 22. Bh6 {[%clk 0:00:23]}  g6 {[%clk 0:00:57]} 23. Rb3 {[%clk 0:00:24]}  Qc7 {[%clk 0:00:57]} 24. Nf3 {[%clk 0:00:11]}  Bf8 {[%clk 0:00:44]} 25. Qh4 {[%clk 0:00:07]}  Bg7 {[%clk 0:00:33]} 26. Bxg7 {[%clk 0:00:06]}  Qc1+ {[%clk 0:00:33]} 27. Ne1 {[%clk 0:00:05]}  Qxa1 {[%clk 0:00:31]} 28. Re3 {[%clk 0:00:06]}  Rc1 {[%clk 0:00:20]} 29. Kf1 {[%clk 0:00:05]}  Bb5+ {[%clk 0:00:20]} 0-1


[Site "https://www.chess.com"]

[Event "Titled Tuesday Blitz November 08 Early 2022"]
[White "Adnan, Habib"]
[Black "Lucas, Arthur"]
[WhiteFideId "11202270"]
[BlackFideId "26093073"]
[WhiteElo "2110"]
[BlackElo "2251"]
[Result "0-1"]
[Round "04"]
[TimeControl "180+1"]
[Date "2022.11.09"]
[WhiteClock "0:00:48"]
[BlackClock "0:01:20"]

1. d4 {[%clk 0:03:00]}  d5 {[%clk 0:02:56]} 2. c4 {[%clk 0:02:57]}  dxc4 {[%clk 0:02:56]} 3. e3 {[%clk 0:02:57]}  Nf6 {[%clk 0:02:55]} 4. Bxc4 {[%clk 0:02:56]}  e6 {[%clk 0:02:56]} 5. Nf3 {[%clk 0:02:56]}  c5 {[%clk 0:02:57]} 6. O-O {[%clk 0:02:55]}  a6 {[%clk 0:02:58]} 7. Bb3 {[%clk 0:02:56]}  cxd4 {[%clk 0:02:52]} 8. exd4 {[%clk 0:02:56]}  Nc6 {[%clk 0:02:52]} 9. Nc3 {[%clk 0:02:55]}  Be7 {[%clk 0:02:53]} 10. Bg5 {[%clk 0:02:55]}  h6 {[%clk 0:02:53]} 11. Bh4 {[%clk 0:02:55]}  O-O {[%clk 0:02:53]} 12. Qd2 {[%clk 0:02:48]}  Re8 {[%clk 0:02:51]} 13. Rad1 {[%clk 0:02:46]}  Nd5 {[%clk 0:02:48]} 14. Bg3 {[%clk 0:02:38]}  Bf6 {[%clk 0:02:37]} 15. Ne4 {[%clk 0:02:35]}  Be7 {[%clk 0:02:30]} 16. Rc1 {[%clk 0:02:28]}  Bd7 {[%clk 0:02:26]} 17. Nd6 {[%clk 0:02:27]}  Bxd6 {[%clk 0:02:25]} 18. Bxd6 {[%clk 0:02:26]}  Rc8 {[%clk 0:02:23]} 19. Bc2 {[%clk 0:01:58]}  Nce7 {[%clk 0:01:52]} 20. Rfe1 {[%clk 0:01:31]}  Bc6 {[%clk 0:01:47]} 21. Ba3 {[%clk 0:01:28]}  b5 {[%clk 0:01:37]} 22. Bc5 {[%clk 0:01:05]}  Bb7 {[%clk 0:01:32]} 23. Bb1 {[%clk 0:00:52]}  Nf6 {[%clk 0:01:29]} 24. Ne5 {[%clk 0:00:48]}  Nc6 {[%clk 0:01:20]} 0-1


[Site "https://www.chess.com"]